bitfinex-derivatives/quotes_ETHF0:USTF0_20250606
["timestamp","ask_amount","ask_price","bid_price","bid_amount"]
[1749238622362,0.80277,2489.5,2489.4,0.669]
[1749238622670,0.80277,2489.5,2489.2,0.00602228]
[1749238622671,0.80284,2489.3,2489.2,0.80886228]
[1749238622968,1.96752119,2489.3,2489.2,0.80886228]
[1749238623568,1.96752119,2489.3,2489.2,0.00602228]
[1749238623867,1.96752119,2489.3,2489.2,0.80889228]
[1749238624462,1.16468119,2489.3,2489.2,0.80889228]
[1749238624770,0.80282,2489.4,2489.3,0.80284]
[1749238624968,1.96851129,2489.4,2489.3,0.80284]
[1749238625670,1.16569129,2489.4,2489.3,0.80284]
[1749238625966,1.96849129,2489.4,2489.3,0.80284]
[1749238627066,1.16569129,2489.4,2489.3,0.80284]
[1749238627370,1.16569129,2489.4,2489.3,4.01064]
[1749238633372,1.16569129,2489.4,2489.3,15.23224]
[1749238633568,0.00602228,2489.7,2489.6,0.80274]
[1749238633873,0.00602228,2489.7,2489.6,4.01054]
[1749238634168,6.4033,2490.4,2490.3,0.80251]
[1749238635573,0.80256,2490.3,2490.2,0.80252]
[1749238635771,1.3457,2490.3,2490.2,0.80252]
[1749238635969,2.14821,2490.3,2490.2,0.80252]
[1749238636172,1.3457,2490.3,2490.2,0.80252]
[1749238636676,2.14821,2490.3,2490.2,0.80252]
[1749238636974,1.3457,2490.3,2490.2,0.80252]
[1749238637473,0.6868,2490.4,2490.3,0.80251]
[1749238637769,5.10832228,2490.6,2490.3,0.80251]
[1749238637976,4.47792228,2490.6,2490.5,0.80245]
[1749238638287,0.80245,2490.5,2490.4,0.80247]
[1749238638577,2.06655,2490.5,2490.4,0.80247]
[1749238638784,0.80253,2490.4,2490.3,0.80251]
[1749238639075,2.06663,2490.4,2490.3,0.80251]
[1749238639277,1.2641,2490.4,2490.3,0.80251]
[1749238639477,0.00602228,2490.6,2490.5,0.80245]
[1749238640880,0.00602228,2490.6,2490.5,1.47325]
[1749238643187,3.8638,2491.2,2490.8,2.00586]
[1749238643479,4.66606,2491.2,2491.1,0.80226]
[1749238644280,0.80229,2491.0,2490.9,1.46510228]
[1749238645477,1.95947958,2491.0,2490.9,0.80830228]
[1749238645692,6.95947958,2491.0,2490.9,0.00602228]
[1749238645883,1.95947958,2491.0,2490.9,0.00602228]
[1749238646082,6.86547958,2491.0,2490.9,0.00602228]
[1749238646884,6.86547958,2491.0,2490.9,0.80834228]
[1749238647091,6.86547958,2491.0,2490.9,0.00602228]
[1749238649890,6.8650722,2491.0,2490.9,0.00602228]
[1749238650090,6.8650722,2491.0,2490.9,0.80834228]
[1749238650390,1.9590722,2491.0,2490.9,0.80834228]
[1749238650899,1.1567822,2491.0,2490.9,0.80834228]
[1749238651492,0.80820228,2491.4,2491.3,0.80219]
[1749238651692,0.00602228,2491.4,2491.3,0.80219]
[1749238651989,1.16288085,2491.4,2491.3,0.80219]
[1749238652488,1.96504085,2491.4,2491.3,0.80219]
[1749238653090,1.16288085,2491.4,2491.3,0.80219]
[1749238655778,1.16288085,2491.4,2491.3,0.87352351]
[1749238660191,1.1624896,2491.4,2491.3,0.87352351]
[1749238661392,1.9646496,2491.4,2491.3,0.87352351]
[1749238661591,1.1624896,2491.4,2491.3,0.87352351]
[1749238668300,1.16558262,2491.4,2491.3,0.87352351]
[1749238668593,10.17554262,2491.4,2491.3,0.07133351]
[1749238669095,12.18594262,2491.4,2491.3,0.07133351]
[1749238670400,7.18594262,2491.4,2491.3,0.07133351]
[1749238672795,7.18594262,2491.4,2491.3,0.87352351]
[1749238673602,7.18594262,2491.4,2491.3,0.07133351]
[1749238673802,3.17598262,2491.4,2491.3,0.87352351]
[1749238674003,2.50038262,2491.4,2491.3,0.87352351]
[1749238674299,1.16558262,2491.4,2491.3,0.87352351]
[1749238675720,1.96774262,2491.4,2491.3,0.87352351]
[1749238676701,1.16558262,2491.4,2491.3,0.87352351]
[1749238677098,1.96774262,2491.4,2491.3,0.87352351]
[1749238683006,1.96774262,2491.4,2491.3,0.07133351]
[1749238683707,1.96774262,2491.4,2491.3,0.87352351]
[1749238684807,1.16558262,2491.4,2491.3,0.87352351]
[1749238685200,1.96774262,2491.4,2491.3,0.87352351]
[1749238686095,1.95832392,2491.4,2491.3,0.07133351]
[1749238686303,5.16612392,2491.4,2491.3,0.07133351]
[1749238686503,0.80229,2491.0,2490.9,0.00602228]
[1749238686701,1.95243164,2491.0,2490.9,0.00602228]
[1749238686901,1.95243164,2491.0,2490.9,0.80834228]
[1749238688109,1.15014164,2491.0,2490.9,0.80834228]
[1749238689700,1.95243164,2491.0,2490.9,0.80834228]
[1749238689900,1.15014164,2491.0,2490.9,0.80834228]
[1749238691910,1.15014164,2491.0,2490.9,1.46814228]
[1749238692110,1.15014164,2491.0,2490.9,11.36514228]
[1749238693007,2.28e-06,2491.4,2491.3,0.80219]
[1749238693204,0.80204,2491.9,2491.8,0.80201]
[1749238694212,7.76362258,2492.1,2491.7,2.00515]
[1749238694415,0.80199,2492.0,2491.9,0.80199]
[1749238695106,0.80199,2492.0,2491.9,0.80198]
[1749238696512,0.80203,2491.9,2491.8,0.80201]
[1749238696907,0.8021,2491.6,2491.3,8.1048]
[1749238697106,0.80216,2491.5,2491.4,0.80213]
[1749238697306,0.80216,2491.4,2491.3,0.80217]
[1749238697510,0.80219,2491.3,2491.2,0.652]
[1749238698014,0.80226,2491.1,2491.0,0.655]
[1749238698230,3.2078,2491.4,2491.0,0.655]
[1749238698406,3.2078,2491.4,2491.3,0.80216]
[1749238698407,0.80218,2491.4,2491.3,0.80216]
[1749238698605,0.6409,2491.5,2491.1,2.00565]
[1749238698606,1.44305,2491.5,2491.4,0.80216]
[1749238698803,0.8021,2491.7,2491.6,0.8021]
[1749238699815,0.80205,2491.8,2491.7,0.80202]
[1749238700817,0.80202,2491.9,2491.8,0.802]
[1749238701118,0.80205,2491.9,2491.8,0.80202]
[1749238701415,0.80205,2491.9,2491.6,2.65824]
[1749238701416,0.80206,2491.8,2491.7,0.80205]
[1749238703518,0.80202,2491.9,2491.8,0.802]
[1749238704919,1.94587442,2491.9,2491.8,0.802]
[1749238705919,1.14385442,2491.9,2491.8,0.802]
[1749238706817,1.94585442,2491.9,2491.8,0.802]
[1749238707318,1.94625619,2491.9,2491.8,0.802]
[1749238709221,1.14425619,2491.9,2491.8,0.802]
[1749238717831,1.94625619,2491.9,2491.8,0.802]
[1749238718828,1.14425619,2491.9,2491.8,0.802]
[1749238720634,1.94625619,2491.9,2491.8,0.802]
[1749238720930,4.58475619,2491.9,2491.8,0.802]
[1749238721133,3.78275619,2491.9,2491.8,0.802]
[1749238721524,1.81745619,2491.9,2491.8,0.802]
[1749238722437,1.14425619,2491.9,2491.8,0.802]
[1749238722729,3.14931619,2491.9,2491.4,0.6433]
[1749238722932,3.14931619,2491.9,2491.2,2.64045]
[1749238722933,0.80219,2491.3,2491.2,0.8022]
[1749238723126,0.80226,2491.2,2491.1,0.80223]
[1749238723328,2.40905619,2491.2,2491.1,0.80223]
[1749238724133,3.21128619,2491.2,2491.1,0.80223]
[1749238725535,2.40905619,2491.2,2491.1,0.80223]
[1749238726041,3.21128619,2491.2,2491.1,0.80223]
[1749238726239,6.41908619,2491.2,2491.1,0.80223]
[1749238726435,0.80229,2491.0,2490.9,0.80833228]
[1749238726641,1.94654619,2491.0,2490.9,0.80834228]
[1749238727040,1.14425619,2491.0,2490.9,0.80834228]
[1749238727641,2.83439,2491.0,2490.9,0.80834228]
[1749238727843,3.97864619,2491.0,2490.9,0.80834228]
[1749238728347,3.97864619,2491.0,2490.9,0.00602228]
[1749238728542,3.98827357,2491.0,2490.9,0.00602228]
[1749238728843,3.18598357,2491.0,2490.9,0.80834228]
[1749238729242,3.98827357,2491.0,2490.9,0.80834228]
[1749238729439,3.18598357,2491.0,2490.9,0.80834228]
[1749238729841,3.98827357,2491.0,2490.9,0.80834228]
[1749238730536,3.98827357,2491.0,2490.9,0.00602228]
[1749238731346,3.98827357,2491.0,2490.9,0.80834228]
[1749238731537,3.98827357,2491.0,2490.9,0.00602228]
[1749238731738,3.98827357,2491.0,2490.9,0.80834228]
[1749238732141,3.98827357,2491.0,2490.4,6.88916]
[1749238732142,0.80251,2490.4,2490.3,0.80248]
[1749238732341,1.95369034,2490.4,2490.3,0.80249]
[1749238732540,0.6353,2490.5,2490.4,0.80248]
[1749238732850,1.43775,2490.5,2490.4,0.80248]
[1749238733054,0.80251,2490.4,2490.3,0.80249]
[1749238733347,1.15116087,2490.4,2490.3,0.80249]
[1749238733648,1.15116087,2490.4,2490.3,1.44569]
[1749238734448,0.00602228,2490.6,2490.5,0.80245]
[1749238734648,1.95788136,2490.6,2490.5,0.80245]
[1749238735851,3.22898136,2490.6,2490.5,0.80245]
[1749238736250,0.80248,2490.5,2490.4,0.80246]
[1749238737148,0.652,2490.9,2490.4,0.80246]
[1749238737149,0.80227,2491.1,2490.4,9.884]
[1749238737349,4.66055,2491.5,2491.0,3.2078]
[1749238737553,0.80222,2491.3,2491.2,0.80219]
[1749238737756,1.9504178,2491.3,2491.2,0.80219]
[1749238737951,3.2611178,2491.3,2491.2,0.80219]
[1749238738151,0.80224,2491.2,2491.1,0.80224]
[1749238738357,3.2611378,2491.2,2491.1,0.80224]
[1749238739251,0.80232,2491.0,2490.9,0.8023]
[1749238739453,1.95038112,2491.0,2490.9,0.8023]
[1749238739655,1.14806112,2491.0,2490.9,0.8023]
[1749238739954,2.53566112,2491.0,2490.9,0.8023]
[1749238740154,3.33795112,2491.0,2490.9,0.8023]
[1749238740546,4.02455112,2491.0,2490.9,0.8023]
[1749238741147,0.80237,2490.9,2490.8,0.80233]
[1749238741352,3.33803112,2490.9,2490.8,0.80233]
[1749238741868,2.53566112,2490.9,2490.8,0.80233]
[1749238742353,2.53566112,2490.9,2490.7,0.80237]
[1749238742551,3.33826097,2490.8,2490.7,0.80237]
[1749238742752,0.80245,2490.6,2490.3,3.2078]
[1749238742959,3.27805097,2490.5,2490.4,0.80244]
[1749238743158,3.84257097,2490.5,2490.4,0.80244]
[1749238743356,3.19217097,2490.5,2490.4,0.80244]
[1749238744053,1.14827097,2490.5,2490.4,0.80244]
[1749238744256,5.5344,2490.9,2490.8,0.80235]
[1749238744561,7.48561629,2490.9,2490.8,0.80235]
[1749238744755,8.05029629,2490.9,2490.4,0.6555]
[1749238744961,3.31826629,2490.8,2490.7,0.80239]
[1749238745153,2.51589629,2490.8,2490.7,0.80239]
[1749238745661,2.51589629,2490.8,2490.4,2.0062]
[1749238745662,0.80241,2490.7,2490.6,0.8024]
[1749238745851,3.31830629,2490.7,2490.6,0.8024]
[1749238749863,1.14889629,2490.7,2490.6,0.8024]
[1749238750256,6.36274629,2490.7,2490.2,2.00638]
[1749238750561,0.80248,2490.5,2490.4,0.80245]
[1749238750760,1.14889629,2490.5,2490.4,0.80245]
[1749238750957,1.14908043,2490.6,2490.3,2.0063]
[1749238751154,1.14908043,2490.5,2490.4,0.80248]
[1749238751760,1.14908043,2490.5,2490.4,2.15528]
[1749238751957,0.80241,2490.7,2490.6,0.80242]
[1749238752155,1.95296115,2490.7,2490.6,0.80242]
[1749238753857,0.80241,2490.7,2490.6,0.80242]
[1749238754264,1.15155538,2490.7,2490.6,0.80242]
[1749238754463,1.15189299,2490.7,2490.6,1.49462]
[1749238754765,1.15195933,2490.8,2490.7,0.80239]
[1749238754962,1.15197471,2490.8,2490.6,4.01514]
[1749238755263,1.15214993,2490.7,2490.6,2.81152]
[1749238755757,1.15214993,2490.7,2490.6,6.01932]
[1749238759561,1.15214993,2490.7,2490.6,4.70242]
[1749238762060,1.95453993,2490.7,2490.6,3.2078]
[1749238762264,4.35994993,2490.7,2490.3,4.879]
[1749238762460,5.20722993,2490.6,2490.1,0.00602228]
[1749238762664,0.80253,2490.3,2490.2,0.80253]
[1749238762861,0.80255,2490.2,2490.1,0.80858228]
[1749238763061,1.15214993,2490.2,2490.1,0.80858228]
[1749238763565,0.8025,2490.4,2490.3,0.80249]
[1749238763765,0.80253,2490.3,2490.2,0.80253]
[1749238763966,1.9577982,2490.3,2490.2,0.80253]
[1749238764266,1.1552682,2490.3,2490.2,0.80253]
[1749238764469,0.8025,2490.4,2490.3,0.80249]
[1749238764669,1.95768357,2490.4,2490.3,0.80249]
[1749238766075,0.80255,2490.3,2490.2,0.80253]
[1749238766370,1.15518357,2490.3,2490.2,0.80253]
[1749238767666,1.15518357,2490.3,2490.2,2.05763]
[1749238767972,1.15518357,2490.3,2490.2,0.80253]
[1749238768674,1.95770357,2490.3,2490.2,0.80253]
[1749238769060,0.80255,2490.2,2490.1,0.00602228]
[1749238769264,3.29943357,2490.2,2490.1,0.00602228]
[1749238769466,6.50723357,2490.2,2490.1,0.00602228]
[1749238770262,0.80268,2489.8,2489.7,3.2078]
[1749238770465,1.95786357,2489.8,2489.7,3.2078]
[1749238771079,1.95786357,2489.8,2489.7,4.01051]
[1749238771570,1.15518357,2489.8,2489.7,4.01051]
[1749238772171,0.00602228,2490.0,2489.9,0.80265]
[1749238772369,1.15961656,2490.0,2489.9,0.80265]
[1749238772674,1.15961656,2490.0,2489.8,0.80265]
[1749238772971,1.95604599,2489.9,2489.8,0.80265]
[1749238773274,0.80268,2489.8,2489.7,4.01049]
[1749238773478,1.95605599,2489.8,2489.7,4.01049]
[1749238773678,1.15337599,2489.8,2489.7,4.01049]
[1749238774974,1.95605599,2489.8,2489.7,3.2078]
[1749238775279,4.59295599,2489.8,2489.7,3.2078]
[1749238777280,4.59295599,2489.8,2489.7,4.01051]
[1749238777585,4.59295599,2489.8,2489.7,3.2078]
[1749238777783,4.59295599,2489.8,2489.7,4.01051]
[1749238777983,4.59295599,2489.8,2489.7,3.2078]
[1749238779583,4.59295599,2489.8,2489.7,4.01051]
[1749238779986,4.59295599,2489.8,2489.7,0.80271]
[1749238780187,1.84847599,2489.8,2489.7,0.80271]
[1749238780385,1.15337599,2489.8,2489.7,4.01051]
[1749238780884,0.80863228,2490.0,2489.9,0.80265]
[1749238781079,1.95913277,2490.0,2489.9,0.80265]
[1749238781284,1.15652277,2490.0,2489.9,0.80265]
[1749238782883,0.00602228,2490.0,2489.9,0.80265]
[1749238784490,0.00602228,2490.0,2489.9,5.80265]
[1749238785286,0.80248,2490.4,2490.3,0.80252]
[1749238785893,1.15123833,2490.4,2490.3,0.80252]
[1749238786077,1.15123833,2490.4,2490.3,4.01032]
[1749238788588,0.80246,2490.5,2490.4,0.80248]
[1749238788794,1.15298184,2490.5,2490.3,5.21407]
[1749238788987,0.00602228,2490.6,2490.5,0.80245]
[1749238789186,1.15908668,2490.6,2490.5,0.80245]
[1749238789690,1.96150668,2490.6,2490.5,0.80245]
[1749238791499,0.80248,2490.5,2490.4,0.80246]
[1749238791697,1.9555444,2490.5,2490.4,0.80246]
[1749238793314,1.9555144,2490.5,2490.4,0.80246]
[1749238796604,1.9555144,2490.5,2490.3,3.2078]
[1749238796805,0.80247,2490.5,2490.4,0.80245]
[1749238797110,0.00602228,2490.6,2490.5,0.80245]
[1749238797508,0.00602228,2490.6,2490.5,1.43795]
[1749238801009,0.80844228,2490.6,2490.5,1.43795]
[1749238801304,0.00602228,2490.6,2490.3,3.2078]
[1749238801511,0.00602228,2490.6,2490.5,0.80245]
[1749238801710,1.15929833,2490.6,2490.5,0.80245]
[1749238801910,2.61673833,2490.6,2490.5,0.80245]
[1749238804011,1.15929833,2490.6,2490.5,0.80245]
[1749238804209,0.00602228,2490.6,2490.5,0.80245]
[1749238806708,0.00602228,2490.6,2490.4,0.80246]
[1749238806904,0.00602228,2490.6,2490.3,4.0103]
[1749238806905,1.15455365,2490.5,2490.3,4.0103]
[1749238807108,3.14416976,2490.4,2490.3,4.0103]
[1749238807313,3.94664976,2490.4,2490.3,4.0103]
[1749238808813,3.14416976,2490.4,2490.3,4.0103]
[1749238809113,0.00602228,2490.6,2490.5,0.80245]
[1749238809320,0.00602228,2490.6,2490.5,5.67545]
[1749238809911,0.00602228,2490.6,2490.5,7.04015]
[1749238816224,0.00602228,2490.6,2490.5,5.67545]
[1749238818418,0.00602228,2490.6,2490.5,6.95225]
[1749238820923,1.3911,2491.4,2491.3,0.80219]
[1749238821225,8.3876303,2491.9,2491.3,0.80219]
[1749238821226,0.80209,2491.7,2491.6,0.80206]
[1749238821421,1.95414262,2491.7,2491.6,0.80206]
[1749238821819,2.19319,2491.7,2491.6,0.80206]
[1749238822122,2.54359499,2491.7,2491.6,0.80206]
[1749238822313,2.54359499,2491.7,2491.4,0.00602228]
[1749238822519,3.25512499,2491.6,2491.5,0.80211]
[1749238824424,0.80213,2491.5,2491.4,0.80816228]
[1749238824617,3.25512499,2491.5,2491.4,0.80816228]
[1749238825321,1.15249499,2491.5,2491.4,0.80816228]
[1749238825724,1.3383,2491.8,2491.7,0.80207]
[1749238825927,2.49027841,2491.8,2491.7,0.80207]
[1749238826728,3.86057841,2491.8,2491.7,0.80207]
[1749238826927,4.66260841,2491.8,2491.7,0.80207]
[1749238827529,3.86057841,2491.8,2491.4,0.00602228]
[1749238827724,2.52227841,2491.7,2491.4,0.00602228]
[1749238827924,2.52227841,2491.6,2491.5,0.80213]
[1749238828633,1.15197841,2491.6,2491.5,0.80213]
[1749238829425,2.14034,2491.8,2491.5,0.80213]
[1749238829426,2.14034,2491.8,2491.7,0.80207]
[1749238829730,4.61043426,2491.8,2491.7,0.80207]
[1749238831133,3.80839426,2491.8,2491.4,0.69062228]
[1749238831334,3.24549426,2491.7,2491.6,0.80207]
[1749238831534,2.44339426,2491.7,2491.6,0.80207]
[1749238832737,2.44354389,2491.7,2491.6,0.80207]
[1749238836033,3.24561389,2491.7,2491.6,0.80207]
[1749238836238,2.44354389,2491.7,2491.6,0.80207]
[1749238839841,3.24561389,2491.7,2491.6,0.80207]
[1749238841642,2.44354389,2491.7,2491.6,0.80207]
[1749238842143,1.15174389,2491.7,2491.6,0.80207]
[1749238844345,1.95381389,2491.7,2491.6,0.80207]
[1749238844636,3.30121389,2491.7,2491.6,0.80207]
[1749238845646,2.49914389,2491.7,2491.6,0.80207]
[1749238846243,3.30121389,2491.7,2491.6,0.80207]
[1749238846943,2.49914389,2491.7,2491.6,0.80207]
[1749238848147,1.15174389,2491.7,2491.6,0.80207]
[1749238848842,1.78844879,2491.8,2491.7,0.80207]
[1749238849248,1.789004,2491.8,2491.7,0.80207]
[1749238849449,3.083004,2491.8,2491.7,0.80207]
[1749238849744,3.885034,2491.8,2491.7,0.80207]
[1749238849944,3.083004,2491.8,2491.7,0.80207]
[1749238850748,1.155804,2491.8,2491.7,0.80207]
[1749238854655,3.21382228,2491.9,2491.8,0.80203]
[1749238854854,4.37133934,2491.9,2491.8,0.80203]
[1749238857549,5.76053934,2491.9,2491.8,0.80203]
[1749238859158,4.37133934,2491.9,2491.8,0.80203]
[1749238859657,4.37133934,2491.9,2491.8,5.66403]
[1749238860059,4.3713999,2491.9,2491.8,5.66403]
[1749238861857,5.1733999,2491.9,2491.8,5.66403]
[1749238862053,0.8021,2491.7,2491.6,0.80207]
[1749238862255,1.95967762,2491.7,2491.6,0.80207]
[1749238862755,3.34957762,2491.7,2491.6,0.80207]
[1749238862955,0.80213,2491.6,2491.5,0.80211]
[1749238863159,2.54747762,2491.6,2491.5,0.80211]
[1749238864663,1.15757762,2491.6,2491.5,0.80211]
[1749238866959,1.15757762,2491.6,2491.5,2.17571]
[1749238867659,1.15757762,2491.6,2491.5,0.80211]
[1749238867854,1.15757762,2491.6,2491.5,5.66411]
[1749238868764,1.15757762,2491.6,2491.5,0.80211]
[1749238868968,1.15757762,2491.6,2491.5,5.66411]
[1749238872970,1.95967762,2491.6,2491.5,0.80211]
[1749238873569,2.42047762,2491.6,2491.5,0.80211]
[1749238874260,1.15757762,2491.6,2491.5,0.80211]
[1749238874764,3.21382228,2491.9,2491.8,0.80203]
[1749238875271,3.21382228,2491.9,2491.8,5.66403]
[1749238876266,0.00602228,2491.9,2491.8,5.66403]
[1749238878165,3.847,2492.5,2492.4,0.80184]
[1749238878473,3.2078,2492.8,2492.7,0.80174]
[1749238878672,4.00951,2492.8,2492.7,0.80174]
[1749238878974,5.27391,2492.8,2492.7,0.80174]
[1749238879373,1.2644,2492.8,2492.7,0.80174]
[1749238879972,2.15094643,2493.0,2492.9,0.80168]
[1749238880168,2.62848643,2493.0,2492.9,0.80168]
[1749238880977,0.00398643,2493.0,2492.9,0.80168]
[1749238881275,0.00398643,2493.0,2492.9,4.00948]
[1749238890579,3.2078,2493.6,2493.5,0.80149]
[1749238890776,4.36241122,2493.6,2493.5,0.80149]
[1749238891185,5.68001122,2493.6,2493.5,0.80149]
[1749238891376,6.48147122,2493.6,2493.5,0.80149]
[1749238893081,5.68001122,2493.6,2493.5,0.80149]
[1749238894176,2.47221122,2493.6,2493.5,4.00929]
[1749238894381,1.3176,2493.6,2493.5,4.00929]
[1749238897986,2.11905,2493.6,2493.5,4.00929]
[1749238898282,1.3176,2493.6,2493.5,4.00929]
[1749238901483,0.6426,2493.7,2493.6,0.80145]
[1749238901689,1.7984989,2493.7,2493.6,0.80145]
[1749238902187,1.2766,2494.0,2493.9,0.80136]
[1749238902388,2.43259423,2494.0,2493.9,0.80136]
[1749238902585,1.15599423,2494.0,2493.9,0.80136]
[1749238903084,0.80128,2494.2,2494.1,0.80126]
[1749238903283,3.2365863,2494.2,2494.1,0.80126]
[1749238904189,2.4357711,2494.2,2494.1,0.80126]
[1749238904380,2.4357711,2494.2,2494.1,4.00906]
[1749238905390,1.1591711,2494.2,2494.1,4.00906]
[1749238905590,1.1591711,2494.2,2494.1,4.68916]
[1749238905788,1.3241,2494.5,2494.4,0.8012]
[1749238906088,0.6913,2494.6,2494.5,0.80117]
[1749238906682,1.49243,2494.6,2494.5,0.80117]
[1749238908090,0.6913,2494.6,2494.5,0.80117]
[1749238908499,2.0701,2494.6,2494.5,0.80117]
[1749238908791,2.87123,2494.6,2494.5,0.80117]
[1749238908980,0.80117,2494.5,2494.4,4.00898]
[1749238909184,2.17997,2494.5,2494.4,4.00898]
[1749238910589,2.00304,2494.4,2494.0,5.65332]
[1749238910790,0.80129,2494.1,2494.0,4.852]
[1749238911493,0.80129,2494.1,2494.0,5.65333]
[1749238911686,2.15969,2494.1,2494.0,5.65333]
[1749238912087,2.15969,2494.1,2494.0,0.80133]
[1749238913691,1.3584,2494.1,2494.0,0.80133]
[1749238914003,2.15969,2494.1,2494.0,0.80133]
[1749238914291,0.6351,2494.3,2494.2,0.80126]
[1749238914496,3.2078,2494.4,2494.1,0.6647]
[1749238914693,3.2078,2494.4,2494.3,0.80123]
[1749238915298,4.009,2494.4,2494.3,0.80123]
[1749238915691,5.3185,2494.4,2494.3,0.80123]
[1749238916199,0.6855,2494.5,2494.4,0.8012]
[1749238917287,1.48669,2494.5,2494.4,0.8012]
[1749238917701,2.64272657,2494.5,2494.4,0.8012]
[1749238918097,1.15603657,2494.5,2494.4,0.8012]
[1749238926210,0.80114,2494.6,2494.5,0.80117]
[1749238926401,1.96229471,2494.6,2494.5,0.80117]
[1749238927705,0.8012,2494.4,2494.3,3.2078]
[1749238927905,0.80123,2494.3,2494.2,0.80123]
[1749238928101,3.24548471,2494.3,2494.2,0.80123]
[1749238929901,0.80129,2494.2,2494.1,0.80127]
[1749238930108,3.32204471,2494.2,2494.1,0.80127]
[1749238930311,0.80129,2494.1,2494.0,3.2078]
[1749238930507,0.80132,2494.0,2493.9,0.00602228]
[1749238930710,5.17027471,2494.0,2493.9,0.00602228]
[1749238930910,11.52987471,2494.0,2493.9,0.00602228]
[1749238931711,0.80149,2493.5,2493.4,3.2078]
[1749238931914,1.96264471,2493.5,2493.4,3.2078]
[1749238932306,0.80155,2493.3,2493.2,0.80156]
[1749238932508,0.80157,2493.3,2493.2,0.80156]
[1749238932810,1.96329387,2493.3,2493.2,0.80156]
[1749238933014,0.80158,2493.2,2493.1,4.00939]
[1749238933215,3.35220387,2493.2,2493.1,4.00939]
[1749238933512,3.35220387,2493.2,2493.1,3.2078]
[1749238934803,2.55062387,2493.2,2493.1,4.00941]
[1749238935410,3.35220387,2493.2,2493.1,4.00941]
[1749238936304,2.55062387,2493.2,2493.1,4.00941]
[1749238937113,3.35220387,2493.2,2493.1,4.00941]
[1749238937315,2.55062387,2493.2,2493.1,4.00941]
[1749238938515,3.35220387,2493.2,2493.1,4.00941]
[1749238940109,2.55062387,2493.2,2493.1,4.00941]
[1749238940511,1.44885,2493.3,2493.2,0.80158]
[1749238940713,2.60518002,2493.3,2493.2,0.80158]
[1749238941317,1.15633002,2493.3,2493.2,0.80158]
[1749238941717,0.80154,2493.4,2493.3,0.80152]
[1749238941911,1.95742472,2493.4,2493.3,0.80152]
[1749238943113,1.15588472,2493.4,2493.3,0.80152]
[1749238943309,0.80751228,2493.5,2493.4,0.80152]
[1749238943514,1.96320636,2493.5,2493.4,0.80152]
[1749238943721,1.96323206,2493.5,2493.4,0.80152]
[1749238943914,3.25603206,2493.5,2493.4,0.80152]
[1749238946726,2.45454206,2493.5,2493.4,0.80152]
[1749238947021,1.96323206,2493.5,2493.4,0.80152]
[1749238947726,1.16174206,2493.5,2493.4,0.80152]
[1749238948019,1.96323206,2493.5,2493.4,0.80152]
[1749238953018,0.80155,2493.4,2493.3,0.80153]
[1749238953224,1.95726978,2493.4,2493.3,0.80153]
[1749238953428,3.32196978,2493.4,2493.3,0.80153]
[1749238954824,1.95726978,2493.4,2493.3,0.80153]
[1749238956518,0.80155,2493.3,2493.2,1.48376]
[1749238956719,0.80155,2493.3,2493.1,3.2078]
[1749238956720,0.80158,2493.2,2493.1,3.2078]
[1749238957021,0.80161,2493.1,2493.0,0.00602228]
[1749238957223,1.95732978,2493.1,2493.0,0.00602228]
[1749238957424,3.31052978,2493.1,2493.0,0.00602228]
[1749238957626,3.31052978,2493.1,2493.0,0.80767228]
[1749238958216,3.31052978,2493.1,2493.0,0.00602228]
[1749238960123,13.15252978,2493.1,2493.0,0.00602228]
[1749238960618,16.32733008,2493.1,2493.0,0.00602228]
[1749238961321,16.32733008,2493.1,2492.1,0.80191]
[1749238961322,0.80193,2492.2,2492.1,0.80191]
[1749238961623,3.2078,2492.2,2492.1,0.80191]
[1749238961924,1.15571978,2492.2,2492.1,0.80191]
[1749238962122,1.15871068,2492.3,2492.0,2.00493]
[1749238962327,1.15871068,2492.2,2492.1,0.80194]
[1749238964827,3.2078,2492.5,2492.3,0.80184]
[1749238965014,1.9587097,2492.4,2492.3,0.80184]
[1749238966224,1.1568497,2492.4,2492.3,0.80184]
[1749238966615,1.9586897,2492.4,2492.3,0.80184]
[1749238966917,1.1568497,2492.4,2492.3,0.80184]
[1749238968615,1.1568497,2492.4,2492.3,1.47524]
[1749238968923,4.00953,2492.8,2492.7,0.80174]
[1749238969123,4.36299211,2492.8,2492.7,0.80174]
[1749238970724,5.16470211,2492.8,2492.7,0.80174]
[1749238971320,4.36299211,2492.8,2492.7,0.80174]
[1749238972422,5.16470211,2492.8,2492.7,0.80174]
[1749238973128,4.36299211,2492.8,2492.7,0.80174]
[1749238973427,5.16470211,2492.8,2492.7,0.80174]
[1749238973726,4.36299211,2492.8,2492.7,0.80174]
[1749238974027,0.80178,2492.7,2492.6,0.80174]
[1749238974226,1.95697211,2492.7,2492.6,0.80174]
[1749238974725,3.29407211,2492.7,2492.6,0.80174]
[1749238975724,1.15519211,2492.7,2492.6,0.80174]
[1749238976628,1.95693211,2492.7,2492.6,0.80174]
[1749238977233,1.15519211,2492.7,2492.6,0.80174]
[1749238982531,1.95693211,2492.7,2492.6,0.80174]
[1749238982729,3.23933211,2492.7,2492.6,0.80174]
[1749238983533,3.23933211,2492.7,2492.5,1.3192]
[1749238983534,0.80177,2492.6,2492.5,0.8018]
[1749238983729,0.80185,2492.5,2492.4,0.80181]
[1749238983930,1.95704211,2492.5,2492.4,0.80181]
[1749238984230,3.27364211,2492.5,2492.4,0.80181]
[1749238985536,2.47179211,2492.5,2492.4,0.80181]
[1749238985733,1.15519211,2492.5,2492.4,0.80181]
[1749238986537,1.2867,2492.6,2492.5,0.80181]
[1749238987841,2.44634743,2492.6,2492.5,0.80181]
[1749238988531,1.15964743,2492.6,2492.5,0.80181]
[1749238988839,3.2078,2492.8,2492.7,0.80174]
[1749238988840,4.837,2492.8,2492.7,0.80174]
[1749238989034,5.99679528,2492.8,2492.7,0.80174]
[1749238989233,1.15979528,2492.8,2492.7,0.80174]
[1749238989740,1.96150528,2492.8,2492.7,0.80174]
[1749238990039,0.80174,2492.7,2492.6,1.46385]
[1749238990238,1.96153528,2492.7,2492.6,1.46385]
[1749238990440,1.15979528,2492.7,2492.6,1.46385]